[Event "Polish Youth 1st League 2022"]
[Site "Lublin"]
[Date "2022.06.27"]
[Round "3.16"]
[White "Brzezina, Piotr"]
[Black "Wajda, Krzysztof"]
[Result "1/2-1/2"]
[ECO "C78"]
[WhiteElo "1633"]
[BlackElo "1494"]
[Annotator "NA RC"]
[PlyCount "111"]
[EventDate "2022.06.24"]
[EventType "team-tourn"]
[EventCountry "POL"]
[SourceTitle "playchess.com"]
[Source "ChessBase"]
[SourceQuality "1"]
[TimeControl "40/5400+30:1800+30"]

1. e4 {[%emt 0:00:03]} e5 {[%emt 0:00:08]} 2. Nf3 {[%emt 0:00:09]} Nc6 {[%emt 0:00:07]} 3. Bb5 {[%emt 0:00:21]} a6 {[%emt 0:00:42]} 4. Ba4 {[%emt 0:00:13]} Nf6 {[%emt 0:00:14]} 5. O-O {[%emt 0:00:17]} b5 {[%emt 0:00:43]} 6. Bb3 {[%emt 0:00:05]} Bc5 {[%emt 0:01:02]} 7. c3 {[%emt 0:00:37]} d6 {[%emt 0:01:16]} 8. d4 {[%emt 0:00:41]} Bb6 {[%emt 0:00:11]} 9. a4 {[%emt 0:01:51]} Bb7 {[%emt 0:02:16]} 10. Re1 {[%emt 0:04:00]} h6 {[%emt 0:01:45]} 11. Qd3 {[%emt 0:19:51]} O-O {[%emt 0:10:09]} 12. axb5 {[%emt 0:14:47]} axb5 {[%emt 0:01:55]} 13. Rxa8 {[%emt 0:00:04]} Qxa8 {[%emt 0:00:14]} 14. d5 {[%emt 0:00:05]} Na5 {[%emt 0:11:30]} 15. Bc2 {[%emt 0:03:27]} Ng4 {[%emt 0:03:06]} 16. Be3 {[%emt 0:00:54]} Nxe3 {[%emt 0:03:00]} 17. fxe3 {[%emt 0:00:09]} Ba6 {[%emt 0:16:35]} 18. Nbd2 {[%emt 0:06:10]} c5 {[%emt 0:10:20]} 19. Nh4 {[%emt 0:06:03]} g6 {[%emt 0:04:10]} 20. Qe2 {[%emt 0:05:21]} Qd8 {[%emt 0:05:34]} 21. Ndf3 {[%emt 0:02:31]} Qd7 {[%emt 0:05:32]} 22. h3 {[%emt 0:07:21]} Ra8 {[%emt 0:03:51]} 23. b3 {[%emt 0:01:12]} Nb7 {[%emt 0:03:21]} 24. b4 {[%emt 0:04:58]} Nd8 {[%emt 0:01:26]} 25. Ra1 {[%emt 0:02:13]} c4 {[%emt 0:01:33]} 26. Kf2 {[%emt 0:00:51]} Ra7 {[%emt 0:00:40]} 27. Ra2 {[%emt 0:01:22]} Bc8 {[%emt 0:01:08]} 28. Bb1 {[%emt 0:00:13]} Qb7 {[%emt 0:01:07]} 29. g4 {[%emt 0:00:35]} Ra6 {[%emt 0:02:42]} 30. Rxa6 {[%emt 0:01:00]} Qxa6 {[%emt 0:00:23]} 31. Qa2 {[%emt 0:00:07]} Qxa2+ {[%emt 0:01:41]} 32. Bxa2 {[%emt 0:00:05]} Kg7 {[%emt 0:00:35]} 33. Bb1 {[%emt 0:01:21]} h5 {[%emt 0:01:36]} 34. Nh2 {[%emt 0:00:42]} f6 {[%emt 0:01:08]} 35. gxh5 {[%emt 0:08:12]} g5 {[%emt 0:05:13]} 36. Nf5+ {[%emt 0:00:06]} Bxf5 {[%emt 0:00:03]} 37. exf5 {[%emt 0:00:06]} Nf7 {[%emt 0:00:15]} 38. Kf3 {[%emt 0:00:48]} Nh6 {[%emt 0:01:01]} 39. Ng4 {[%emt 0:01:33]} Nxg4 {[%emt 0:00:15]} 40. hxg4 {[%emt 0:00:00]} Kf7 {[%emt 0:00:00]} 41. Ke2 {[%emt 0:00:33]} Bd8 {[%emt 0:01:35]} 42. Kd2 {[%emt 0:10:33]} Be7 {[%emt 0:00:27]} 43. Bc2 {[%emt 0:00:14]} Ke8 {[%emt 0:00:14]} 44. Kc1 {[%emt 0:00:06]} Kd7 {[%emt 0:00:15]} 45. h6 {[%emt 0:00:10]} Bf8 {[%emt 0:00:04]} 46. h7 {[%emt 0:00:03]} Bg7 {[%emt 0:00:03]} 47. Ba4 {[%emt 0:01:36]} bxa4 {[%emt 0:00:26]} 48. Kb2 {[%emt 0:00:12]} Kc7 {[%emt 0:00:21]} 49. Ka3 {[%emt 0:00:08]} Kb6 {[%emt 0:00:13]} 50. Kxa4 {[%emt 0:00:05]} Bh8 {[%emt 0:01:19]} 51. e4 {[%emt 0:00:39]} Bg7 {[%emt 0:00:25]} 52. b5 {[%emt 0:00:30]} Bh8 {[%emt 0:00:30]} 53. Kb4 {[%emt 0:00:07]} Bg7 {[%emt 0:00:11]} 54. Ka4 {[%emt 0:00:26]} Bh8 {[%emt 0:00:04]} 55. Kb4 {[%emt 0:00:05]} Bg7 {[%emt 0:00:03]} 56. Ka4 {[%emt 0:00:07]} 1/2-1/2

[Event "Polish Youth 1st League 2022"]
[Site "Lublin"]
[Date "2022.06.27"]
[Round "3.17"]
[White "Czarnecka, Lidia"]
[Black "Hertlein, Irena"]
[Result "1-0"]
[ECO "B28"]
[WhiteElo "1940"]
[BlackElo "1873"]
[Annotator "NA RC"]
[PlyCount "135"]
[EventDate "2022.06.24"]
[EventType "team-tourn"]
[EventCountry "POL"]
[SourceTitle "playchess.com"]
[Source "ChessBase"]
[SourceQuality "1"]
[TimeControl "40/5400+30:1800+30"]

1. e4 {[%emt 0:00:12]} c5 {[%emt 0:00:06]} 2. Nf3 {[%emt 0:00:30]} a6 {[%emt 0:00:11]} 3. c4 {[%emt 0:01:26]} b6 {[%emt 0:00:41]} 4. Nc3 {[%emt 0:01:54]} Bb7 {[%emt 0:01:11]} 5. d4 {[%emt 0:01:48]} cxd4 {[%emt 0:00:22]} 6. Nxd4 {[%emt 0:00:13]} e6 {[%emt 0:00:25]} 7. Be3 {[%emt 0:12:38]} Qc7 {[%emt 0:01:02]} 8. Be2 {[%emt 0:01:11]} Nf6 {[%emt 0:00:53]} 9. f3 {[%emt 0:00:16]} Be7 {[%emt 0:01:11]} 10. O-O {[%emt 0:00:51]} O-O {[%emt 0:01:17]} 11. Rc1 {[%emt 0:03:17]} d6 {[%emt 0:00:23]} 12. Qe1 {[%emt 0:01:27]} Nbd7 {[%emt 0:00:45]} 13. Qf2 {[%emt 0:00:30]} Rac8 {[%emt 0:04:45]} 14. Rfd1 {[%emt 0:00:54]} Qb8 {[%emt 0:02:12]} (14... h6 $14) 15. Nc2 {[%emt 0:01:42]} (15. g4 $16) 15... Bd8 {[%emt 0:05:09]} 16. Nb4 {[%emt 0:04:37]} Bc7 {[%emt 0:04:41]} 17. g3 {[%emt 0:01:09]} Rfe8 {[%emt 0:07:58]} 18. Bd4 {[%emt 0:04:39]} Bd8 {[%emt 0:16:36]} 19. b3 {[%emt 0:03:33]} Be7 {[%emt 0:09:22]} 20. Nd3 {[%emt 0:01:43]} Ba8 {[%emt 0:08:48]} 21. Nb2 {[%emt 0:04:01]} d5 {[%emt 0:14:50]} 22. cxd5 {[%emt 0:07:39]} exd5 {[%emt 0:06:50]} 23. Bxa6 {[%emt 0:10:41]} dxe4 {[%emt 0:02:12]} 24. Bxc8 {[%emt 0:02:03]} Rxc8 {[%emt 0:00:05]} 25. Nxe4 {[%emt 0:01:34]} Nxe4 {[%emt 0:00:17]} 26. fxe4 {[%emt 0:02:46]} Nc5 {[%emt 0:02:24]} 27. Qf4 {[%emt 0:04:38]} ({Not} 27. Rf1 Rf8 $16) 27... Qb7 {[%emt 0:06:01]} 28. Qg4 {[%emt 0:04:09]} Bf8 {[%emt 0:01:10]} 29. Na4 {[%emt 0:02:33]} Ne6 {[%emt 0:02:37]} 30. Be3 {[%emt 0:01:19]} Rxc1 {[%emt 0:00:29]} 31. Rxc1 {[%emt 0:00:09]} h5 {[%emt 0:00:31]} 32. Qf3 {[%emt 0:00:37]} Bc5 {[%emt 0:00:28]} 33. Nxc5 {[%emt 0:03:35]} bxc5 {[%emt 0:00:04]} 34. Rc4 {[%emt 0:01:35]} Qd7 {[%emt 0:00:59]} 35. Kf2 {[%emt 0:03:55]} ({Don't play} 35. Qxh5 $6 Qd3 36. Kf2 (36. Bxc5 Bxe4 37. Rxe4 Qxe4 $16) 36... Bxe4) ({Inferior is} 35. Bxc5 Nxc5 36. Rxc5 Qd4+ 37. Qf2 Qd1+ 38. Qf1 Qd4+ 39. Qf2 Qd1+ 40. Qf1 Qd4+ 41. Qf2 $11) 35... h4 {[%emt 0:00:23]} 36. Bxc5 {[%emt 0:04:26]} hxg3+ {[%emt 0:00:20]} 37. hxg3 {[%emt 0:00:06]} Ng5 {[%emt 0:00:35]} 38. Qe3 {[%emt 0:01:45]} Qg4 {[%emt 0:00:41]} 39. Bd6 {[%emt 0:02:18]} Nxe4+ {[%emt 0:00:28]} 40. Ke1 {[%emt 0:00:00]} Qe6 {[%emt 0:00:00]} 41. Bf4 {[%emt 0:02:37]} Qh3 {[%emt 0:16:11]} 42. Qg1 {[%emt 0:09:02]} (42. Kd1 $142) 42... Qe6 {[%emt 0:00:34]} 43. Kd1 {[%emt 0:01:12]} Bd5 {[%emt 0:03:07]} 44. Rc2 {[%emt 0:00:29]} Qf6 {[%emt 0:09:39]} 45. Ke2 {[%emt 0:15:41]} Nc3+ {[%emt 0:00:48]} 46. Ke1 {[%emt 0:00:28]} ({Don't take} 46. Kd2 $6 Ne4+ 47. Kd1 Be6 $16) 46... Ne4 {[%emt 0:03:12]} 47. Qe3 {[%emt 0:00:36]} (47. Rc8+ $18 {has better winning chances.} Kh7 48. Qh2+ Kg6 49. g4) 47... Qa1+ {[%emt 0:00:24]} 48. Ke2 {[%emt 0:04:23]} Qh1 {[%emt 0:00:19]} 49. b4 {[%emt 0:01:07]} Qg2+ {[%emt 0:00:29]} 50. Kd3 {[%emt 0:01:00]} Qf1+ {[%emt 0:00:27]} 51. Qe2 {[%emt 0:00:30]} Qb1 {[%emt 0:00:23]} 52. Kd4 {[%emt 0:00:12]} Nf6 {[%emt 0:00:19]} 53. Kc5 {[%emt 0:00:47]} Be4 $18 {[%emt 0:01:10]} (53... Be6) 54. Rc1 {[%emt 0:02:31]} Nd7+ {[%emt 0:00:19]} 55. Kd4 {[%emt 0:00:54]} Qxb4+ {[%emt 0:00:34]} 56. Rc4 {[%emt 0:00:00]} Bf3 {[%emt 0:00:38]} 57. Qe8+ {[%emt 0:01:56]} Qf8 {[%emt 0:00:10]} 58. Rc8 {[%emt 0:00:14]} Qxe8 {[%emt 0:00:18]} 59. Rxe8+ {[%emt 0:00:04]} Kh7 {[%emt 0:00:02]} 60. a4 {[%emt 0:00:10]} Kg6 {[%emt 0:01:26]} 61. a5 {[%emt 0:00:24]} Kf6 {[%emt 0:00:32]} 62. Bc7 {[%emt 0:00:21]} g5 {[%emt 0:00:21]} 63. a6 {[%emt 0:00:16]} Kf5 {[%emt 0:00:23]} 64. a7 {[%emt 0:00:14]} Kg4 {[%emt 0:00:27]} 65. a8=Q {[%emt 0:00:10]} Bxa8 {[%emt 0:00:04]} 66. Rxa8 {[%emt 0:00:08]} f5 {[%emt 0:00:01]} 67. Ke3 {[%emt 0:00:32]} Nf6 {[%emt 0:00:15]} 68. Ra5 {[%emt 0:00:19]} 1-0

[Event "Polish Youth 1st League 2022"]
[Site "Lublin"]
[Date "2022.06.27"]
[Round "3.18"]
[White "Duda, Aleksandra"]
[Black "Slusarczyk, Anna"]
[Result "1-0"]
[ECO "B24"]
[WhiteElo "1453"]
[BlackElo "1544"]
[Annotator "NA RC"]
[PlyCount "83"]
[EventDate "2022.06.24"]
[EventType "team-tourn"]
[EventCountry "POL"]
[SourceTitle "playchess.com"]
[Source "ChessBase"]
[SourceQuality "1"]
[TimeControl "40/5400+30:1800+30"]

1. e4 {[%emt 0:00:03]} c5 {[%emt 0:00:04]} 2. Nc3 {[%emt 0:00:05]} Nc6 {[%emt 0:00:45]} 3. g3 {[%emt 0:00:09]} g6 {[%emt 0:01:05]} 4. d3 {[%emt 0:00:09]} Bg7 {[%emt 0:00:15]} 5. Be3 {[%emt 0:00:07]} d6 {[%emt 0:00:34]} 6. Qd2 {[%emt 0:00:12]} Nf6 {[%emt 0:00:58]} 7. Bh6 {[%emt 0:00:34]} O-O {[%emt 0:06:48]} 8. h4 {[%emt 0:00:28]} Bxh6 {[%emt 0:07:27]} 9. Qxh6 {[%emt 0:00:06]} Nd4 {[%emt 0:01:56]} 10. Qd2 {[%emt 0:02:06]} Bg4 {[%emt 0:01:38]} 11. Bg2 {[%emt 0:02:37]} Qb6 {[%emt 0:08:49]} 12. f3 {[%emt 0:05:00]} Be6 {[%emt 0:08:38]} 13. O-O-O {[%emt 0:02:46]} a5 {[%emt 0:02:03]} 14. Nge2 {[%emt 0:04:06]} a4 {[%emt 0:02:11]} 15. a3 {[%emt 0:02:19]} Bb3 {[%emt 0:00:34]} 16. Nxd4 {[%emt 0:04:16]} cxd4 {[%emt 0:00:07]} 17. cxb3 {[%emt 0:02:33]} dxc3 {[%emt 0:00:06]} 18. bxc3 {[%emt 0:00:19]} axb3 {[%emt 0:01:09]} 19. Kb2 {[%emt 0:00:48]} Rxa3 {[%emt 0:03:25]} 20. Ra1 {[%emt 0:07:04]} Ra2+ {[%emt 0:00:16]} 21. Rxa2 {[%emt 0:00:29]} bxa2+ {[%emt 0:00:18]} 22. Ka1 {[%emt 0:01:58]} Ra8 {[%emt 0:00:35]} 23. Qb2 {[%emt 0:02:44]} Qc7 {[%emt 0:15:43]} 24. Rc1 {[%emt 0:08:17]} Nd7 {[%emt 0:01:30]} 25. d4 {[%emt 0:06:47]} Nb6 {[%emt 0:12:35]} 26. Bf1 {[%emt 0:07:21]} d5 {[%emt 0:00:31]} 27. e5 {[%emt 0:01:56]} Nc4 {[%emt 0:02:36]} 28. Bxc4 {[%emt 0:01:40]} dxc4 {[%emt 0:00:04]} 29. Qb5 {[%emt 0:03:54]} Ra5 {[%emt 0:12:32]} 30. Qb4 {[%emt 0:00:44]} b5 {[%emt 0:01:19]} 31. Rc2 {[%emt 0:02:24]} Qa7 {[%emt 0:01:31]} 32. f4 {[%emt 0:02:34]} Kf8 {[%emt 0:03:16]} 33. g4 {[%emt 0:03:45]} Ra3 {[%emt 0:00:33]} 34. Rc1 {[%emt 0:08:26]} Rb3 {[%emt 0:00:26]} 35. Qc5 {[%emt 0:00:57]} Qa5 {[%emt 0:00:15]} 36. h5 {[%emt 0:01:42]} h6 {[%emt 0:02:06]} 37. g5 {[%emt 0:04:27]} gxh5 {[%emt 0:03:25]} 38. Qc8+ {[%emt 0:02:10]} Kg7 {[%emt 0:00:03]} 39. gxh6+ {[%emt 0:00:14]} Kh7 {[%emt 0:01:21]} 40. Qf5+ {[%emt 0:00:00]} Kg8 {[%emt 0:00:00]} 41. Rg1+ {[%emt 0:01:16]} Kh8 {[%emt 0:00:38]} 42. Qc8+ {[%emt 0:00:08]} 1-0

[Event "Polish Youth 1st League 2022"]
[Site "Lublin"]
[Date "2022.06.27"]
[Round "3.19"]
[White "Panek, Bartosz"]
[Black "Klim, Filip"]
[Result "1-0"]
[ECO "D31"]
[WhiteElo "2022"]
[BlackElo "2015"]
[Annotator "RC"]
[PlyCount "59"]
[EventDate "2022.06.24"]
[EventType "team-tourn"]
[EventCountry "POL"]
[SourceTitle "playchess.com"]
[Source "ChessBase"]
[SourceQuality "1"]
[TimeControl "40/5400+30:1800+30"]

1. d4 {[%emt 0:00:19]} d5 {[%emt 0:00:09]} 2. c4 {[%emt 0:00:06]} e6 {[%emt 0:00:08]} 3. Nc3 {[%emt 0:00:18]} a6 {[%emt 0:00:57]} 4. cxd5 {[%emt 0:00:07]} exd5 {[%emt 0:00:04]} 5. g3 {[%emt 0:00:06]} Nf6 {[%emt 0:01:56]} 6. Bg2 {[%emt 0:00:08]} Be7 {[%emt 0:07:40]} 7. Nh3 {[%emt 0:00:11]} O-O {[%emt 0:02:56]} 8. Nf4 {[%emt 0:00:18]} c6 {[%emt 0:02:06]} 9. O-O {[%emt 0:01:12]} Bf5 {[%emt 0:03:48]} 10. f3 {[%emt 0:04:06]} c5 {[%emt 0:09:00]} 11. e3 {[%emt 0:15:09]} Nc6 {[%emt 0:15:01]} 12. Kh1 {[%emt 0:29:17]} Re8 {[%emt 0:11:09]} 13. dxc5 {[%emt 0:03:07]} d4 {[%emt 0:02:39]} 14. Na4 {[%emt 0:00:14]} dxe3 {[%emt 0:06:03]} 15. Bxe3 {[%emt 0:04:57]} Qxd1 {[%emt 0:01:13]} 16. Rfxd1 {[%emt 0:00:08]} Bc2 {[%emt 0:08:09]} 17. Nb6 {[%emt 0:00:07]} Bxd1 {[%emt 0:01:00]} 18. Nxa8 {[%emt 0:00:06]} Bxf3 {[%emt 0:01:42]} 19. Bxf3 {[%emt 0:00:04]} Rxa8 {[%emt 0:01:14]} 20. Rd1 {[%emt 0:00:09]} Kf8 {[%emt 0:04:23]} 21. b3 {[%emt 0:05:15]} Rc8 {[%emt 0:04:08]} 22. Nd5 {[%emt 0:05:41]} Nxd5 {[%emt 0:01:57]} 23. Rxd5 {[%emt 0:00:05]} Nb4 {[%emt 0:02:50]} 24. Rd7 {[%emt 0:00:06]} Ke8 {[%emt 0:03:05]} 25. Rxb7 {[%emt 0:00:09]} Nc2 {[%emt 0:01:23]} 26. Bg4 {[%emt 0:00:45]} Rd8 {[%emt 0:02:20]} 27. Bg1 {[%emt 0:02:10]} Nd4 {[%emt 0:02:43]} 28. Bxd4 {[%emt 0:06:28]} Rxd4 {[%emt 0:00:05]} 29. c6 {[%emt 0:00:04]} Bd6 {[%emt 0:03:47]} 30. Rd7 {[%emt 0:00:05]} 1-0

[Event "Polish Youth 1st League 2022"]
[Site "Lublin"]
[Date "2022.06.27"]
[Round "3.20"]
[White "Bartodziej, Bartosz"]
[Black "Kubik, Rafal"]
[Result "0-1"]
[ECO "B76"]
[WhiteElo "1902"]
[BlackElo "1827"]
[Annotator "RC"]
[PlyCount "76"]
[EventDate "2022.06.24"]
[EventType "team-tourn"]
[EventCountry "POL"]
[SourceTitle "playchess.com"]
[Source "ChessBase"]
[SourceQuality "1"]
[TimeControl "40/5400+30:1800+30"]

1. e4 {[%emt 0:00:05]} c5 {[%emt 0:00:43]} 2. Nf3 {[%emt 0:00:07]} d6 {[%emt 0:00:52]} 3. d4 {[%emt 0:00:05]} cxd4 {[%emt 0:00:04]} 4. Nxd4 {[%emt 0:00:03]} Nf6 {[%emt 0:00:07]} 5. Nc3 {[%emt 0:00:10]} g6 {[%emt 0:00:08]} 6. Be3 {[%emt 0:00:07]} Bg7 {[%emt 0:00:06]} 7. f3 {[%emt 0:00:05]} O-O {[%emt 0:00:10]} 8. Qd2 {[%emt 0:00:05]} Nc6 {[%emt 0:00:06]} 9. O-O-O {[%emt 0:00:08]} d5 {[%emt 0:00:05]} 10. Qe1 {[%emt 0:00:19]} e5 {[%emt 0:00:13]} 11. Nxc6 {[%emt 0:00:07]} bxc6 {[%emt 0:00:07]} 12. exd5 {[%emt 0:00:06]} Nxd5 {[%emt 0:00:12]} 13. Bc4 {[%emt 0:00:10]} Be6 {[%emt 0:00:17]} 14. Kb1 {[%emt 0:00:11]} Re8 {[%emt 0:00:56]} 15. Ne4 {[%emt 0:04:25]} f5 {[%emt 0:00:21]} 16. Ng5 {[%emt 0:02:20]} Bc8 {[%emt 0:00:28]} 17. Bb3 {[%emt 0:24:28]} f4 {[%emt 0:15:56]} 18. Bxf4 {[%emt 0:03:15]} exf4 {[%emt 0:02:35]} 19. Rxd5 {[%emt 0:00:22]} cxd5 20. Bxd5+ {[%emt 0:00:23]} Qxd5 {[%emt 0:01:54]} 21. Qxe8+ {[%emt 0:00:03]} Bf8 {[%emt 0:00:06]} 22. Nxh7 {[%emt 0:03:35]} Kxh7 {[%emt 0:02:13]} 23. Qxf8 {[%emt 0:00:30]} Bf5 {[%emt 0:00:53]} 24. Qe7+ {[%emt 0:00:49]} Kg8 {[%emt 0:00:31]} 25. Qe2 {[%emt 0:09:42]} Rc8 {[%emt 0:03:20]} 26. Rc1 {[%emt 0:02:17]} a5 {[%emt 0:09:25]} 27. g4 {[%emt 0:11:52]} Be6 {[%emt 0:05:48]} 28. b3 {[%emt 0:00:38]} Rd8 {[%emt 0:01:59]} 29. h4 {[%emt 0:12:14]} a4 {[%emt 0:04:53]} 30. h5 {[%emt 0:13:29]} axb3 {[%emt 0:01:34]} 31. axb3 {[%emt 0:00:55]} gxh5 {[%emt 0:06:22]} 32. gxh5 {[%emt 0:00:28]} Bf5 {[%emt 0:00:37]} 33. Ka2 {[%emt 0:10:22]} Ra8+ {[%emt 0:02:29]} 34. Kb2 {[%emt 0:00:04]} Qd4+ {[%emt 0:01:04]} 35. c3 {[%emt 0:00:02]} Qa7 {[%emt 0:00:38]} 36. Rg1+ {[%emt 0:03:56]} Qxg1 {[%emt 0:00:11]} 37. Qc4+ {[%emt 0:00:04]} Kh8 {[%emt 0:00:08]} 38. Qe2 {[%emt 0:00:50]} Qe3 {[%emt 0:00:24]} 0-1

[Event "Polish Youth 1st League 2022"]
[Site "Lublin"]
[Date "2022.06.27"]
[Round "3.21"]
[White "Karwot, Marek"]
[Black "Nawalaniec, Adam"]
[Result "1-0"]
[ECO "B06"]
[WhiteElo "1454"]
[BlackElo "1740"]
[Annotator "NA RC"]
[PlyCount "93"]
[EventDate "2022.06.24"]
[EventType "team-tourn"]
[EventCountry "POL"]
[SourceTitle "playchess.com"]
[Source "ChessBase"]
[SourceQuality "1"]
[TimeControl "40/5400+30:1800+30"]

1. e4 {[%emt 0:00:03]} g6 {[%emt 0:00:14]} 2. d4 {[%emt 0:01:59]} Bg7 {[%emt 0:00:30]} 3. f4 {[%emt 0:06:56]} d6 {[%emt 0:03:45]} 4. Nc3 {[%emt 0:05:04]} a6 {[%emt 0:01:53]} 5. Nf3 {[%emt 0:05:24]} b5 {[%emt 0:05:30]} 6. a3 {[%emt 0:03:03]} Bb7 {[%emt 0:03:39]} 7. Bd3 {[%emt 0:06:07]} Nd7 {[%emt 0:05:09]} 8. O-O {[%emt 0:03:47]} c5 {[%emt 0:03:37]} 9. d5 {[%emt 0:10:01]} c4 {[%emt 0:20:08]} 10. Be2 {[%emt 0:00:35]} Bxc3 {[%emt 0:14:30]} 11. bxc3 {[%emt 0:00:38]} Ngf6 {[%emt 0:03:23]} 12. Qd4 {[%emt 0:15:19]} O-O {[%emt 0:05:44]} 13. Ng5 {[%emt 0:15:00]} Qb6 {[%emt 0:05:20]} 14. Bf3 {[%emt 0:04:24]} Qxd4+ {[%emt 0:12:53]} 15. cxd4 {[%emt 0:00:11]} Ne8 {[%emt 0:01:04]} 16. a4 {[%emt 0:04:36]} Nc7 {[%emt 0:01:05]} 17. Bd2 {[%emt 0:05:17]} h6 {[%emt 0:03:23]} 18. Nh3 {[%emt 0:00:52]} f5 {[%emt 0:01:49]} 19. Ba5 {[%emt 0:05:18]} fxe4 {[%emt 0:04:19]} 20. Bxe4 {[%emt 0:01:18]} Nxd5 {[%emt 0:00:10]} 21. Bxg6 {[%emt 0:01:39]} N7f6 {[%emt 0:01:37]} 22. Bd2 {[%emt 0:02:20]} b4 {[%emt 0:00:39]} 23. Bf5 {[%emt 0:00:51]} c3 {[%emt 0:00:21]} 24. Bc1 {[%emt 0:00:54]} Kh8 {[%emt 0:00:40]} 25. Be6 {[%emt 0:00:24]} Bc6 {[%emt 0:00:49]} 26. f5 {[%emt 0:00:39]} Kh7 {[%emt 0:00:19]} 27. Nf4 {[%emt 0:00:17]} Nxf4 28. Rxf4 {[%emt 0:00:29]} Kg7 {[%emt 0:01:03]} 29. Rh4 {[%emt 0:00:34]} Rh8 {[%emt 0:00:07]} 30. Rh3 {[%emt 0:00:34]} Ne4 {[%emt 0:01:08]} 31. d5 {[%emt 0:00:29]} Be8 {[%emt 0:00:13]} 32. Be3 {[%emt 0:00:22]} Bf7 {[%emt 0:00:47]} 33. Bd4+ {[%emt 0:00:35]} Nf6 {[%emt 0:00:01]} 34. Rg3+ {[%emt 0:00:16]} Kf8 {[%emt 0:00:01]} 35. a5 {[%emt 0:00:58]} Rg8 {[%emt 0:00:39]} 36. Rh3 {[%emt 0:00:24]} Nxd5 {[%emt 0:00:29]} 37. Bxf7 {[%emt 0:00:32]} Kxf7 {[%emt 0:00:02]} 38. Rxh6 {[%emt 0:00:22]} Nf4 {[%emt 0:00:15]} 39. Rh7+ {[%emt 0:00:15]} Kf8 {[%emt 0:00:01]} 40. Re1 {[%emt 0:00:00]} e5 {[%emt 0:00:00]} 41. fxe6 {[%emt 0:05:35]} Nxg2 {[%emt 0:06:54]} 42. Rf1+ {[%emt 0:01:49]} Ke8 {[%emt 0:00:16]} 43. Kh1 {[%emt 0:01:14]} b3 {[%emt 0:02:37]} 44. Rff7 {[%emt 0:00:43]} Rb8 {[%emt 0:00:36]} 45. Re7+ {[%emt 0:00:34]} Kd8 {[%emt 0:00:11]} 46. Bf6 {[%emt 0:02:25]} Rb5 {[%emt 0:02:51]} 47. Reg7+ {[%emt 0:00:25]} 1-0

[Event "Polish Youth 1st League 2022"]
[Site "Lublin"]
[Date "2022.06.27"]
[Round "3.22"]
[White "Nocek, Dominik"]
[Black "Niesporek, Franciszek"]
[Result "1/2-1/2"]
[ECO "B70"]
[WhiteElo "1657"]
[BlackElo "1332"]
[Annotator "NA RC"]
[PlyCount "134"]
[EventDate "2022.06.24"]
[EventType "team-tourn"]
[EventCountry "POL"]
[SourceTitle "playchess.com"]
[Source "ChessBase"]
[SourceQuality "1"]
[TimeControl "40/5400+30:1800+30"]

1. e4 {[%emt 0:00:03]} c5 {[%emt 0:00:06]} 2. Nf3 {[%emt 0:00:06]} d6 {[%emt 0:00:05]} 3. d4 {[%emt 0:00:07]} cxd4 {[%emt 0:00:07]} 4. Nxd4 {[%emt 0:00:09]} Nf6 {[%emt 0:00:08]} 5. Nc3 {[%emt 0:00:09]} g6 {[%emt 0:00:05]} 6. g3 {[%emt 0:00:34]} Nc6 {[%emt 0:02:11]} 7. Bg2 {[%emt 0:00:38]} Bd7 {[%emt 0:02:14]} 8. O-O {[%emt 0:01:34]} Bg7 {[%emt 0:00:43]} 9. h3 {[%emt 0:02:24]} O-O {[%emt 0:01:02]} 10. Be3 {[%emt 0:02:21]} a6 {[%emt 0:03:41]} 11. Nd5 {[%emt 0:18:06]} Nxd5 {[%emt 0:13:36]} 12. exd5 {[%emt 0:00:12]} Nxd4 {[%emt 0:00:13]} 13. Bxd4 {[%emt 0:00:03]} Qc7 14. Bxg7 {[%emt 0:03:54]} Kxg7 {[%emt 0:00:36]} 15. Qd4+ {[%emt 0:00:12]} Kg8 {[%emt 0:00:08]} 16. c3 {[%emt 0:03:06]} b5 {[%emt 0:05:40]} 17. Rfe1 {[%emt 0:03:27]} Rfe8 {[%emt 0:00:36]} 18. Qh4 {[%emt 0:02:54]} Qd8 {[%emt 0:09:40]} 19. Qh6 {[%emt 0:05:22]} f5 {[%emt 0:07:16]} 20. h4 {[%emt 0:10:59]} Rf8 {[%emt 0:07:13]} 21. Re3 {[%emt 0:06:11]} Rf7 {[%emt 0:12:54]} 22. Rae1 {[%emt 0:03:39]} Qf8 {[%emt 0:01:09]} 23. Qg5 {[%emt 0:04:08]} Re8 {[%emt 0:01:26]} 24. h5 {[%emt 0:02:22]} Qg7 {[%emt 0:02:22]} 25. f4 {[%emt 0:08:35]} Qf6 {[%emt 0:07:12]} 26. Qxf6 {[%emt 0:00:22]} Rxf6 {[%emt 0:00:09]} 27. hxg6 {[%emt 0:03:49]} hxg6 {[%emt 0:00:16]} 28. Rxe7 {[%emt 0:00:08]} Rxe7 {[%emt 0:00:08]} 29. Rxe7 {[%emt 0:00:05]} Rf7 {[%emt 0:00:08]} 30. Rxf7 {[%emt 0:02:05]} Kxf7 {[%emt 0:00:07]} 31. Kf2 {[%emt 0:00:08]} Ke7 {[%emt 0:02:08]} 32. Ke3 {[%emt 0:00:21]} Kd8 {[%emt 0:01:11]} 33. Kd4 {[%emt 0:00:28]} Kc7 {[%emt 0:00:44]} 34. c4 {[%emt 0:02:08]} bxc4 {[%emt 0:00:34]} 35. Kxc4 {[%emt 0:00:26]} Kb6 {[%emt 0:00:16]} 36. b4 {[%emt 0:01:06]} a5 {[%emt 0:00:08]} 37. Bf3 {[%emt 0:01:06]} Bb5+ {[%emt 0:03:56]} 38. Kb3 {[%emt 0:00:27]} Bd7 {[%emt 0:00:21]} 39. Kc3 {[%emt 0:09:28]} Bc8 {[%emt 0:01:42]} 40. Bd1 {[%emt 0:00:00]} Bd7 {[%emt 0:00:00]} 41. Kb3 {[%emt 0:06:17]} Bc8 {[%emt 0:04:56]} 42. Ka4 {[%emt 0:08:05]} Bd7+ {[%emt 0:00:18]} 43. Ka3 {[%emt 0:00:21]} Bb5 {[%emt 0:15:47]} 44. Ba4 {[%emt 0:05:15]} Bc4 {[%emt 0:00:19]} 45. bxa5+ {[%emt 0:00:21]} Kxa5 {[%emt 0:00:11]} 46. Bc6 {[%emt 0:00:08]} Kb6 {[%emt 0:03:47]} 47. Kb2 {[%emt 0:00:23]} Kc5 {[%emt 0:01:47]} 48. a3 {[%emt 0:06:58]} Kd4 {[%emt 0:01:09]} 49. a4 {[%emt 0:00:58]} Be2 {[%emt 0:10:57]} 50. Be8 {[%emt 0:07:18]} Kxd5 {[%emt 0:01:03]} 51. Bxg6 {[%emt 0:00:04]} Ke4 {[%emt 0:00:17]} 52. Kc3 {[%emt 0:01:10]} Ba6 {[%emt 0:00:54]} 53. g4 {[%emt 0:00:55]} Kxf4 {[%emt 0:00:06]} 54. gxf5 {[%emt 0:00:09]} Ke5 {[%emt 0:00:27]} 55. a5 {[%emt 0:00:48]} d5 {[%emt 0:01:00]} 56. Kd2 {[%emt 0:01:02]} d4 {[%emt 0:00:35]} 57. Kc2 {[%emt 0:00:54]} Bc4 {[%emt 0:00:27]} 58. Kd2 {[%emt 0:00:42]} Ba6 {[%emt 0:00:07]} 59. Bh7 {[%emt 0:01:46]} Bc4 {[%emt 0:00:25]} 60. f6 {[%emt 0:02:11]} Kxf6 {[%emt 0:00:07]} 61. Bd3 {[%emt 0:00:19]} Bd5 {[%emt 0:00:06]} 62. a6 {[%emt 0:00:12]} Ke7 {[%emt 0:00:10]} 63. Bf5 {[%emt 0:00:19]} Kd8 {[%emt 0:00:28]} 64. Kd3 {[%emt 0:00:19]} Kc7 {[%emt 0:00:29]} 65. Kxd4 {[%emt 0:00:11]} Kb6 {[%emt 0:00:06]} 66. Bd3 {[%emt 0:00:28]} Be6 {[%emt 0:00:08]} 67. Bb5 {[%emt 0:00:32]} Bc8 {[%emt 0:00:09]} 1/2-1/2